[Event "Titled Tuesday Blitz February 14 Early 2023"]
[White "Sychev, Klementy"]
[Black "Tan, Jun Ying"]
[WhiteFideId "4114060"]
[BlackFideId "5710413"]
[WhiteElo "2547"]
[BlackElo "2307"]
[Result "1-0"]
[Round "02"]
[TimeControl "180+2"]
[Date "2023.02.15"]
[WhiteClock "0:00:04"]
[BlackClock "0:00:05"]

1. e4 {[%clk 0:02:51]}  c5 {[%clk 0:02:57]} 2. Nf3 {[%clk 0:02:46]}  Nc6 {[%clk 0:02:57]} 3. d4 {[%clk 0:02:46]}  cxd4 {[%clk 0:02:58]} 4. Nxd4 {[%clk 0:02:43]}  Nf6 {[%clk 0:02:59]} 5. Nc3 {[%clk 0:02:42]}  d6 {[%clk 0:02:59]} 6. Bg5 {[%clk 0:02:37]}  e6 {[%clk 0:02:58]} 7. Bb5 {[%clk 0:02:35]}  Bd7 {[%clk 0:02:57]} 8. Qd3 {[%clk 0:02:35]}  h6 {[%clk 0:02:55]} 9. Bh4 {[%clk 0:02:33]}  Be7 {[%clk 0:02:53]} 10. O-O-O {[%clk 0:02:28]}  O-O {[%clk 0:02:52]} 11. Bxc6 {[%clk 0:02:27]}  Bxc6 {[%clk 0:02:39]} 12. f4 {[%clk 0:02:23]}  Rc8 {[%clk 0:02:36]} 13. f5 {[%clk 0:02:17]}  Bd7 {[%clk 0:02:15]} 14. Rhg1 {[%clk 0:01:55]}  Ng4 {[%clk 0:01:33]} 15. Bxe7 {[%clk 0:01:49]}  Qxe7 {[%clk 0:01:34]} 16. Qg3 {[%clk 0:01:46]}  Ne5 {[%clk 0:01:29]} 17. Rdf1 {[%clk 0:01:37]}  Qg5+ {[%clk 0:01:19]} 18. Qxg5 {[%clk 0:01:36]}  hxg5 {[%clk 0:01:20]} 19. Rd1 {[%clk 0:01:31]}  Nc4 {[%clk 0:01:18]} 20. b3 {[%clk 0:01:27]}  Na3 {[%clk 0:00:58]} 21. Kb2 {[%clk 0:01:20]}  b5 {[%clk 0:00:51]} 22. Rd2 {[%clk 0:01:04]}  b4 {[%clk 0:00:51]} 23. Nce2 {[%clk 0:01:01]}  Rc5 {[%clk 0:00:49]} 24. c4 {[%clk 0:00:56]}  exf5 {[%clk 0:00:31]} 25. Ng3 {[%clk 0:00:51]}  f4 {[%clk 0:00:24]} 26. Ngf5 {[%clk 0:00:50]}  Re5 {[%clk 0:00:19]} 27. Nxd6 {[%clk 0:00:46]}  g6 {[%clk 0:00:13]} 28. Rc1 {[%clk 0:00:38]}  f5 {[%clk 0:00:12]} 29. exf5 {[%clk 0:00:35]}  gxf5 {[%clk 0:00:13]} 30. c5 {[%clk 0:00:35]}  Rd5 {[%clk 0:00:11]} 31. Rdd1 {[%clk 0:00:22]}  g4 {[%clk 0:00:07]} 32. Ne2 {[%clk 0:00:19]}  Rxd1 {[%clk 0:00:06]} 33. Rxd1 {[%clk 0:00:20]}  Bc6 {[%clk 0:00:06]} 34. Nxf4 {[%clk 0:00:19]}  Rf6 {[%clk 0:00:03]} 35. Re1 {[%clk 0:00:17]}  Rh6 {[%clk 0:00:03]} 36. h3 {[%clk 0:00:16]}  gxh3 {[%clk 0:00:02]} 37. gxh3 {[%clk 0:00:17]}  Rh4 {[%clk 0:00:03]} 38. Rf1 {[%clk 0:00:17]}  Nb5 {[%clk 0:00:02]} 39. Nxb5 {[%clk 0:00:16]}  Bxb5 {[%clk 0:00:02]} 40. Rf2 {[%clk 0:00:16]}  Bc6 {[%clk 0:00:02]} 41. Kc1 {[%clk 0:00:15]}  Kf7 {[%clk 0:00:03]} 42. Kd2 {[%clk 0:00:15]}  Kf6 {[%clk 0:00:04]} 43. Ke3 {[%clk 0:00:15]}  Rh8 {[%clk 0:00:04]} 44. Rf1 {[%clk 0:00:13]}  Re8+ {[%clk 0:00:05]} 45. Kf2 {[%clk 0:00:13]}  Re4 {[%clk 0:00:05]} 46. Kg3 {[%clk 0:00:10]}  Ke5 {[%clk 0:00:05]} 47. h4 {[%clk 0:00:08]}  Re3+ {[%clk 0:00:06]} 48. Kh2 {[%clk 0:00:08]}  Rc3 {[%clk 0:00:06]} 49. h5 {[%clk 0:00:08]}  Be4 {[%clk 0:00:07]} 50. h6 {[%clk 0:00:07]}  Rxc5 {[%clk 0:00:06]} 51. h7 {[%clk 0:00:06]}  Rc2+ {[%clk 0:00:06]} 52. Kg3 {[%clk 0:00:05]}  Rc3+ {[%clk 0:00:07]} 53. Kh4 {[%clk 0:00:05]}  Rc2 {[%clk 0:00:07]} 54. h8=Q+ {[%clk 0:00:04]}  Kd6 {[%clk 0:00:06]} 55. Qf6+ {[%clk 0:00:04]}  Kc7 {[%clk 0:00:07]} 56. Qe7+ {[%clk 0:00:04]}  Kb6 {[%clk 0:00:07]} 57. Qe6+ {[%clk 0:00:05]}  Ka5 {[%clk 0:00:07]} 58. Qe5+ {[%clk 0:00:05]}  Kb6 {[%clk 0:00:07]} 59. Rg1 {[%clk 0:00:05]}  Rc6 {[%clk 0:00:06]} 60. Nd5+ {[%clk 0:00:05]}  Kb7 {[%clk 0:00:05]} 61. Rg7+ {[%clk 0:00:04]}  Kc8 {[%clk 0:00:05]} 62. Qe8# {[%clk 0:00:04]} 1-0


[Site "https://www.chess.com"]

[Event "Titled Tuesday Blitz February 14 Early 2023"]
[White "Urazayev, Arystanbek"]
[Black "Papp, Levente"]
[WhiteFideId "13709810"]
[BlackFideId "751243"]
[WhiteElo "2460"]
[BlackElo "2353"]
[Result "1/2-1/2"]
[Round "02"]
[TimeControl "180+2"]
[Date "2023.02.15"]
[WhiteClock "0:00:21"]
[BlackClock "0:00:13"]

1. d4 {[%clk 0:03:00]}  Nf6 {[%clk 0:02:57]} 2. c4 {[%clk 0:03:00]}  e6 {[%clk 0:02:55]} 3. Nc3 {[%clk 0:03:01]}  Bb4 {[%clk 0:02:53]} 4. Qc2 {[%clk 0:03:01]}  d5 {[%clk 0:02:52]} 5. a3 {[%clk 0:03:01]}  Bxc3+ {[%clk 0:02:50]} 6. Qxc3 {[%clk 0:03:02]}  dxc4 {[%clk 0:02:49]} 7. Qxc4 {[%clk 0:03:03]}  b6 {[%clk 0:02:48]} 8. Bg5 {[%clk 0:02:57]}  O-O {[%clk 0:02:48]} 9. Nf3 {[%clk 0:02:57]}  Ba6 {[%clk 0:02:45]} 10. Qa4 {[%clk 0:02:56]}  h6 {[%clk 0:02:41]} 11. Bh4 {[%clk 0:02:54]}  Qe7 {[%clk 0:02:34]} 12. Rc1 {[%clk 0:02:33]}  Rd8 {[%clk 0:02:05]} 13. e3 {[%clk 0:02:26]}  Bxf1 {[%clk 0:02:05]} 14. Kxf1 {[%clk 0:02:27]}  c5 {[%clk 0:01:53]} 15. dxc5 {[%clk 0:02:22]}  bxc5 {[%clk 0:01:54]} 16. Ne5 {[%clk 0:02:18]}  Qd6 {[%clk 0:01:46]} 17. Bxf6 {[%clk 0:01:33]}  gxf6 {[%clk 0:01:43]} 18. Nc4 {[%clk 0:01:29]}  Qd5 {[%clk 0:01:27]} 19. h4 {[%clk 0:01:22]}  Kh8 {[%clk 0:01:02]} 20. Rh3 {[%clk 0:01:14]}  Rg8 {[%clk 0:00:59]} 21. Rf3 {[%clk 0:01:14]}  Nc6 {[%clk 0:00:50]} 22. Rd1 {[%clk 0:01:14]}  Qe4 {[%clk 0:00:50]} 23. Nb6 {[%clk 0:01:02]}  Qxa4 {[%clk 0:00:36]} 24. Nxa4 {[%clk 0:01:02]}  f5 {[%clk 0:00:37]} 25. Nxc5 {[%clk 0:01:01]}  Rab8 {[%clk 0:00:34]} 26. b4 {[%clk 0:00:57]}  a5 {[%clk 0:00:27]} 27. Rd6 {[%clk 0:00:57]}  Ne5 {[%clk 0:00:20]} 28. Rf4 {[%clk 0:00:58]}  axb4 {[%clk 0:00:16]} 29. axb4 {[%clk 0:00:56]}  Rgd8 {[%clk 0:00:16]} 30. Rxd8+ {[%clk 0:00:51]}  Rxd8 {[%clk 0:00:17]} 31. Ke2 {[%clk 0:00:32]}  Kg7 {[%clk 0:00:17]} 32. Rd4 {[%clk 0:00:27]}  Rxd4 {[%clk 0:00:15]} 33. exd4 {[%clk 0:00:28]}  Nc6 {[%clk 0:00:16]} 34. Na6 {[%clk 0:00:24]}  Nxd4+ {[%clk 0:00:15]} 35. Kd3 {[%clk 0:00:24]}  Nb5 {[%clk 0:00:13]} 36. Kc4 {[%clk 0:00:24]}  Na3+ {[%clk 0:00:12]} 37. Kc5 {[%clk 0:00:19]}  Kg6 {[%clk 0:00:12]} 38. Nb8 {[%clk 0:00:19]}  Kh5 {[%clk 0:00:12]} 39. g3 {[%clk 0:00:18]}  f4 {[%clk 0:00:12]} 40. Nd7 {[%clk 0:00:18]}  fxg3 {[%clk 0:00:12]} 41. fxg3 {[%clk 0:00:19]}  Kg4 {[%clk 0:00:13]} 42. Ne5+ {[%clk 0:00:20]}  Kxg3 {[%clk 0:00:13]} 43. Nxf7 {[%clk 0:00:21]}  Kxh4 {[%clk 0:00:13]} 44. Nxh6 {[%clk 0:00:21]}  Kg5 {[%clk 0:00:13]} 45. Nf7+ {[%clk 0:00:21]}  Kf4 {[%clk 0:00:13]} 46. Nd6 {[%clk 0:00:18]}  e5 {[%clk 0:00:13]} 47. Nc4 {[%clk 0:00:18]}  Nxc4 {[%clk 0:00:13]} 48. Kxc4 {[%clk 0:00:19]}  e4 {[%clk 0:00:14]} 49. b5 {[%clk 0:00:19]}  e3 {[%clk 0:00:14]} 50. b6 {[%clk 0:00:20]}  e2 {[%clk 0:00:14]} 51. b7 {[%clk 0:00:21]}  e1=Q {[%clk 0:00:15]} 52. b8=Q+ {[%clk 0:00:22]}  Kf3 {[%clk 0:00:14]} 53. Qf8+ {[%clk 0:00:21]}  Kg2 {[%clk 0:00:14]} 54. Qg8+ {[%clk 0:00:21]}  Qg3 {[%clk 0:00:13]} 55. Qxg3+ {[%clk 0:00:21]}  Kxg3 {[%clk 0:00:13]} 1/2-1/2


[Site "https://www.chess.com"]

[Event "Titled Tuesday Blitz February 14 Early 2023"]
[White "Manelyuk, Daniil"]
[Black "Dardha, Daniel"]
[WhiteFideId "44173920"]
[BlackFideId "240990"]
[WhiteElo "2302"]
[BlackElo "2631"]
[Result "0-1"]
[Round "02"]
[TimeControl "180+2"]
[Date "2023.02.15"]
[WhiteClock "0:00:06"]
[BlackClock "0:00:05"]

1. e4 {[%clk 0:03:00]}  c6 {[%clk 0:02:59]} 2. d4 {[%clk 0:02:59]}  d5 {[%clk 0:02:59]} 3. e5 {[%clk 0:02:59]}  Bf5 {[%clk 0:02:58]} 4. h4 {[%clk 0:02:59]}  h5 {[%clk 0:02:57]} 5. Bd3 {[%clk 0:02:59]}  Bxd3 {[%clk 0:02:56]} 6. Qxd3 {[%clk 0:03:00]}  Qa5+ {[%clk 0:02:57]} 7. b4 {[%clk 0:02:57]}  Qa6 {[%clk 0:02:55]} 8. Nf3 {[%clk 0:02:49]}  Qxd3 {[%clk 0:02:54]} 9. cxd3 {[%clk 0:02:49]}  e6 {[%clk 0:02:55]} 10. Bd2 {[%clk 0:02:46]}  Nh6 {[%clk 0:02:53]} 11. Na3 {[%clk 0:02:43]}  Nf5 {[%clk 0:02:52]} 12. Nc2 {[%clk 0:02:44]}  Nd7 {[%clk 0:02:51]} 13. Ne3 {[%clk 0:02:43]}  Be7 {[%clk 0:02:44]} 14. Nxf5 {[%clk 0:02:36]}  exf5 {[%clk 0:02:45]} 15. e6 {[%clk 0:02:26]}  fxe6 {[%clk 0:02:44]} 16. O-O {[%clk 0:02:26]}  Bf6 {[%clk 0:02:42]} 17. Rae1 {[%clk 0:02:25]}  Kf7 {[%clk 0:02:42]} 18. Re2 {[%clk 0:02:23]}  Rhe8 {[%clk 0:02:41]} 19. Rfe1 {[%clk 0:02:23]}  b6 {[%clk 0:02:42]} 20. Bf4 {[%clk 0:02:17]}  Rac8 {[%clk 0:02:31]} 21. Rc1 {[%clk 0:02:00]}  c5 {[%clk 0:01:57]} 22. bxc5 {[%clk 0:01:56]}  bxc5 {[%clk 0:01:58]} 23. Rec2 {[%clk 0:01:54]}  Be7 {[%clk 0:01:44]} 24. Ne5+ {[%clk 0:01:41]}  Nxe5 {[%clk 0:01:36]} 25. Bxe5 {[%clk 0:01:42]}  c4 {[%clk 0:01:13]} 26. dxc4 {[%clk 0:01:41]}  Ba3 {[%clk 0:01:13]} 27. Rb1 {[%clk 0:01:24]}  Rxc4 {[%clk 0:01:10]} 28. Re2 {[%clk 0:00:52]}  Re7 {[%clk 0:00:57]} 29. Re3 {[%clk 0:00:47]}  Rc1+ {[%clk 0:00:49]} 30. Rxc1 {[%clk 0:00:47]}  Bxc1 {[%clk 0:00:50]} 31. Rg3 {[%clk 0:00:40]}  g6 {[%clk 0:00:39]} 32. Rc3 {[%clk 0:00:40]}  Bh6 {[%clk 0:00:38]} 33. Rc8 {[%clk 0:00:31]}  Bg7 {[%clk 0:00:37]} 34. f4 {[%clk 0:00:29]}  Bxe5 {[%clk 0:00:29]} 35. fxe5 {[%clk 0:00:30]}  f4 {[%clk 0:00:23]} 36. Kf2 {[%clk 0:00:22]}  g5 {[%clk 0:00:23]} 37. hxg5 {[%clk 0:00:20]}  Kg6 {[%clk 0:00:22]} 38. Rg8+ {[%clk 0:00:15]}  Kf5 {[%clk 0:00:22]} 39. Kf3 {[%clk 0:00:15]}  Rc7 {[%clk 0:00:21]} 40. Rf8+ {[%clk 0:00:12]}  Kxg5 {[%clk 0:00:21]} 41. Rg8+ {[%clk 0:00:12]}  Kf5 {[%clk 0:00:20]} 42. Rf8+ {[%clk 0:00:12]}  Kg5 {[%clk 0:00:17]} 43. Rg8+ {[%clk 0:00:13]}  Kh4 {[%clk 0:00:17]} 44. Kxf4 {[%clk 0:00:13]}  Rf7+ {[%clk 0:00:16]} 45. Ke3 {[%clk 0:00:12]}  Rb7 {[%clk 0:00:09]} 46. Rg6 {[%clk 0:00:12]}  Rb6 {[%clk 0:00:10]} 47. a4 {[%clk 0:00:12]}  Ra6 {[%clk 0:00:06]} 48. a5 {[%clk 0:00:10]}  Rxa5 {[%clk 0:00:06]} 49. Rxe6 {[%clk 0:00:10]}  Ra3+ {[%clk 0:00:06]} 50. Kf4 {[%clk 0:00:10]}  Rd3 {[%clk 0:00:06]} 51. Rd6 {[%clk 0:00:08]}  Rxd4+ {[%clk 0:00:06]} 52. Kf5 {[%clk 0:00:08]}  Kg3 {[%clk 0:00:07]} 53. Rg6+ {[%clk 0:00:08]}  Kf2 {[%clk 0:00:05]} 54. e6 {[%clk 0:00:08]}  Re4 {[%clk 0:00:05]} 55. Kf6 {[%clk 0:00:08]}  d4 {[%clk 0:00:05]} 56. Rg5 {[%clk 0:00:07]}  d3 {[%clk 0:00:05]} 57. Rxh5 {[%clk 0:00:08]}  d2 {[%clk 0:00:04]} 58. Rd5 {[%clk 0:00:08]}  Ke2 {[%clk 0:00:04]} 59. g3 {[%clk 0:00:06]}  a5 {[%clk 0:00:04]} 60. g4 {[%clk 0:00:05]}  a4 {[%clk 0:00:04]} 61. e7 {[%clk 0:00:04]}  d1=Q {[%clk 0:00:03]} 62. Rxd1 {[%clk 0:00:04]}  Kxd1 {[%clk 0:00:04]} 63. g5 {[%clk 0:00:05]}  a3 {[%clk 0:00:04]} 64. g6 {[%clk 0:00:05]}  a2 {[%clk 0:00:05]} 65. g7 {[%clk 0:00:06]}  a1=Q+ {[%clk 0:00:05]} 66. Kf7 {[%clk 0:00:07]}  Qa2+ {[%clk 0:00:05]} 67. Kf8 {[%clk 0:00:07]}  Qe6 {[%clk 0:00:05]} 68. g8=Q {[%clk 0:00:06]}  Qxe7# {[%clk 0:00:05]} 0-1


[Site "https://www.chess.com"]

[Event "Titled Tuesday Blitz February 14 Early 2023"]
[White "Sourath Biswas"]
[Black "Zhigalko, Sergei"]
[WhiteFideId "35091484"]
[BlackFideId "13502956"]
[WhiteElo "2281"]
[BlackElo "2572"]
[Result "0-1"]
[Round "02"]
[TimeControl "180+2"]
[Date "2023.02.15"]
[WhiteClock "0:00:13"]
[BlackClock "0:00:08"]

1. d4 {[%clk 0:02:57]}  Nf6 {[%clk 0:02:59]} 2. Bf4 {[%clk 0:02:48]}  d5 {[%clk 0:02:48]} 3. e3 {[%clk 0:02:48]}  c5 {[%clk 0:02:49]} 4. Nf3 {[%clk 0:02:46]}  Nc6 {[%clk 0:02:48]} 5. Nbd2 {[%clk 0:02:44]}  Qb6 {[%clk 0:02:41]} 6. dxc5 {[%clk 0:02:44]}  Qxc5 {[%clk 0:02:41]} 7. a3 {[%clk 0:02:44]}  Bg4 {[%clk 0:02:35]} 8. Be2 {[%clk 0:02:39]}  e6 {[%clk 0:02:35]} 9. c4 {[%clk 0:02:39]}  dxc4 {[%clk 0:02:16]} 10. Nxc4 {[%clk 0:01:49]}  Rd8 {[%clk 0:02:15]} 11. Qb3 {[%clk 0:01:47]}  Na5 {[%clk 0:01:54]} 12. Qa4+ {[%clk 0:01:25]}  Nc6 {[%clk 0:01:54]} 13. b4 {[%clk 0:01:20]}  b5 {[%clk 0:01:18]} 14. Qa6 {[%clk 0:00:48]}  Nxb4 {[%clk 0:01:17]} 15. axb4 {[%clk 0:00:49]}  Qxb4+ {[%clk 0:01:18]} 16. Ncd2 {[%clk 0:00:50]}  Be7 {[%clk 0:00:15]} 17. Qxb5+ {[%clk 0:00:50]}  Kf8 {[%clk 0:00:15]} 18. O-O {[%clk 0:00:49]}  Nd5 {[%clk 0:00:12]} 19. Qxb4 {[%clk 0:00:48]}  Bxb4 {[%clk 0:00:12]} 20. Nc4 {[%clk 0:00:45]}  Nc3 {[%clk 0:00:13]} 21. Rfe1 {[%clk 0:00:41]}  f6 {[%clk 0:00:08]} 22. Bf1 {[%clk 0:00:36]}  e5 {[%clk 0:00:08]} 23. Bg3 {[%clk 0:00:36]}  Rd7 {[%clk 0:00:04]} 24. Rec1 {[%clk 0:00:35]}  Rc7 {[%clk 0:00:02]} 25. Na3 {[%clk 0:00:33]}  Kf7 {[%clk 0:00:01]} 26. Nb5 {[%clk 0:00:33]}  Nxb5 {[%clk 0:00:01]} 27. Bxb5 {[%clk 0:00:34]}  Rxc1+ {[%clk 0:00:01]} 28. Rxc1 {[%clk 0:00:35]}  a5 {[%clk 0:00:01]} 29. Rc7+ {[%clk 0:00:35]}  Kg6 {[%clk 0:00:02]} 30. Nh4+ {[%clk 0:00:35]}  Kh6 {[%clk 0:00:02]} 31. h3 {[%clk 0:00:34]}  Be6 {[%clk 0:00:02]} 32. Bc4 {[%clk 0:00:34]}  Bxc4 {[%clk 0:00:01]} 33. Rxc4 {[%clk 0:00:35]}  Ra8 {[%clk 0:00:01]} 34. Rc7 {[%clk 0:00:17]}  Bf8 {[%clk 0:00:02]} 35. Rc2 {[%clk 0:00:08]}  a4 {[%clk 0:00:02]} 36. e4 {[%clk 0:00:08]}  a3 {[%clk 0:00:02]} 37. Ra2 {[%clk 0:00:08]}  Rb8 {[%clk 0:00:01]} 38. Nf5+ {[%clk 0:00:08]}  Kg6 {[%clk 0:00:01]} 39. Ne3 {[%clk 0:00:08]}  Rb2 {[%clk 0:00:02]} 40. Ra1 {[%clk 0:00:09]}  a2 {[%clk 0:00:03]} 41. Kh2 {[%clk 0:00:08]}  Bc5 {[%clk 0:00:03]} 42. Nc4 {[%clk 0:00:08]}  Rc2 {[%clk 0:00:03]} 43. Na5 {[%clk 0:00:09]}  Bd4 {[%clk 0:00:03]} 44. Nb3 {[%clk 0:00:08]}  Bxa1 {[%clk 0:00:03]} 45. Nxa1 {[%clk 0:00:09]}  Rc1 {[%clk 0:00:03]} 46. Nb3 {[%clk 0:00:10]}  Rb1 {[%clk 0:00:04]} 47. Nd2 {[%clk 0:00:10]}  a1=Q {[%clk 0:00:04]} 48. Nxb1 {[%clk 0:00:11]}  Qxb1 {[%clk 0:00:05]} 49. f3 {[%clk 0:00:12]}  Qd3 {[%clk 0:00:05]} 50. h4 {[%clk 0:00:12]}  Kf7 {[%clk 0:00:06]} 51. Kh3 {[%clk 0:00:13]}  Qc2 {[%clk 0:00:07]} 52. Kg4 {[%clk 0:00:14]}  Qc8+ {[%clk 0:00:07]} 53. Kh5 {[%clk 0:00:13]}  Qc2 {[%clk 0:00:08]} 0-1


[Site "https://www.chess.com"]

[Event "Titled Tuesday Blitz February 14 Early 2023"]
[White "Al-Tarboush, Ward"]
[Black "Yeletsky, Ivan"]
[WhiteFideId "7601450"]
[BlackFideId "24180327"]
[WhiteElo "2256"]
[BlackElo "2494"]
[Result "0-1"]
[Round "02"]
[TimeControl "180+2"]
[Date "2023.02.15"]
[WhiteClock "0:00:11"]
[BlackClock "0:00:18"]

1. e4 {[%clk 0:02:38]}  d6 {[%clk 0:02:57]} 2. d4 {[%clk 0:02:35]}  Nf6 {[%clk 0:02:57]} 3. Nc3 {[%clk 0:02:34]}  c6 {[%clk 0:02:57]} 4. Nf3 {[%clk 0:02:31]}  Bg4 {[%clk 0:02:56]} 5. Be3 {[%clk 0:02:29]}  e6 {[%clk 0:02:54]} 6. h3 {[%clk 0:02:27]}  Bh5 {[%clk 0:02:54]} 7. g4 {[%clk 0:02:27]}  Bg6 {[%clk 0:02:54]} 8. e5 {[%clk 0:02:22]}  Ne4 {[%clk 0:02:49]} 9. Bg2 {[%clk 0:01:54]}  Nd7 {[%clk 0:02:37]} 10. exd6 {[%clk 0:00:59]}  Bxd6 {[%clk 0:02:36]} 11. O-O {[%clk 0:00:57]}  h5 {[%clk 0:02:17]} 12. g5 {[%clk 0:00:33]}  h4 {[%clk 0:02:17]} 13. Nxe4 {[%clk 0:00:26]}  Bxe4 {[%clk 0:02:17]} 14. Nd2 {[%clk 0:00:26]}  Bxg2 {[%clk 0:02:06]} 15. Kxg2 {[%clk 0:00:27]}  Qa5 {[%clk 0:01:43]} 16. Ne4 {[%clk 0:00:25]}  Qd5 {[%clk 0:01:22]} 17. Qf3 {[%clk 0:00:24]}  Be7 {[%clk 0:01:19]} 18. b3 {[%clk 0:00:15]}  O-O-O {[%clk 0:00:55]} 19. c4 {[%clk 0:00:15]}  Qf5 {[%clk 0:00:55]} 20. Qxf5 {[%clk 0:00:12]}  exf5 {[%clk 0:00:55]} 21. Nc3 {[%clk 0:00:09]}  Nf8 {[%clk 0:00:49]} 22. f4 {[%clk 0:00:05]}  Bb4 {[%clk 0:00:43]} 23. Ne2 {[%clk 0:00:02]}  Ne6 {[%clk 0:00:40]} 24. Kf3 {[%clk 0:00:03]}  Rd7 {[%clk 0:00:31]} 25. Rad1 {[%clk 0:00:03]}  Rhd8 {[%clk 0:00:31]} 26. Rd3 {[%clk 0:00:04]}  Nc5 {[%clk 0:00:30]} 27. Rdd1 {[%clk 0:00:03]}  Ne4 {[%clk 0:00:31]} 28. Rd3 {[%clk 0:00:03]}  b6 {[%clk 0:00:22]} 29. Ra1 {[%clk 0:00:03]}  Ba3 {[%clk 0:00:20]} 30. Rb1 {[%clk 0:00:02]}  a5 {[%clk 0:00:17]} 31. Rbd1 {[%clk 0:00:03]}  Nc5 {[%clk 0:00:16]} 32. R3d2 {[%clk 0:00:03]}  Ne4 {[%clk 0:00:17]} 33. Rc2 {[%clk 0:00:04]}  Kb7 {[%clk 0:00:18]} 34. Nc3 {[%clk 0:00:04]}  Re8 {[%clk 0:00:15]} 35. Nxe4 {[%clk 0:00:04]}  Rxe4 {[%clk 0:00:16]} 36. Re2 {[%clk 0:00:03]}  Bd6 {[%clk 0:00:13]} 37. Red2 {[%clk 0:00:03]}  Rde7 {[%clk 0:00:12]} 38. Rd3 {[%clk 0:00:03]}  Bc7 {[%clk 0:00:07]} 39. d5 {[%clk 0:00:03]}  cxd5 {[%clk 0:00:08]} 40. cxd5 {[%clk 0:00:04]}  Bd6 {[%clk 0:00:09]} 41. Rc1 {[%clk 0:00:04]}  Rc7 {[%clk 0:00:03]} 42. Rxc7+ {[%clk 0:00:04]}  Kxc7 {[%clk 0:00:04]} 43. Rc3+ {[%clk 0:00:05]}  Kd7 {[%clk 0:00:03]} 44. Rc6 {[%clk 0:00:05]}  f6 {[%clk 0:00:03]} 45. Rxb6 {[%clk 0:00:04]}  Rxe3+ {[%clk 0:00:03]} 46. Kxe3 {[%clk 0:00:04]}  Bc5+ {[%clk 0:00:04]} 47. Kd3 {[%clk 0:00:05]}  Bxb6 {[%clk 0:00:05]} 48. gxf6 {[%clk 0:00:05]}  gxf6 {[%clk 0:00:06]} 49. Kc4 {[%clk 0:00:05]}  Kd6 {[%clk 0:00:06]} 50. a3 {[%clk 0:00:04]}  Be3 {[%clk 0:00:07]} 51. b4 {[%clk 0:00:05]}  axb4 {[%clk 0:00:08]} 52. axb4 {[%clk 0:00:05]}  Bxf4 {[%clk 0:00:09]} 53. Kd4 {[%clk 0:00:05]}  Bh2 {[%clk 0:00:08]} 54. b5 {[%clk 0:00:04]}  Bg1+ {[%clk 0:00:09]} 55. Kc4 {[%clk 0:00:05]}  f4 {[%clk 0:00:09]} 56. Kd3 {[%clk 0:00:05]}  Kxd5 {[%clk 0:00:09]} 57. Ke2 {[%clk 0:00:05]}  Ke4 {[%clk 0:00:10]} 58. Kf1 {[%clk 0:00:06]}  Bb6 {[%clk 0:00:10]} 59. Kg2 {[%clk 0:00:06]}  f3+ {[%clk 0:00:11]} 60. Kh1 {[%clk 0:00:06]}  Kd5 {[%clk 0:00:09]} 61. Kh2 {[%clk 0:00:06]}  Kc4 {[%clk 0:00:10]} 62. Kh1 {[%clk 0:00:07]}  Kxb5 {[%clk 0:00:11]} 63. Kh2 {[%clk 0:00:07]}  Kc4 {[%clk 0:00:12]} 64. Kh1 {[%clk 0:00:08]}  Kd5 {[%clk 0:00:13]} 65. Kh2 {[%clk 0:00:08]}  Ke4 {[%clk 0:00:14]} 66. Kh1 {[%clk 0:00:09]}  Ke3 {[%clk 0:00:15]} 67. Kh2 {[%clk 0:00:09]}  Ke2 {[%clk 0:00:15]} 68. Kh1 {[%clk 0:00:10]}  f2 {[%clk 0:00:16]} 69. Kh2 {[%clk 0:00:11]}  f5 {[%clk 0:00:17]} 70. Kh1 {[%clk 0:00:11]}  f1=Q+ {[%clk 0:00:17]} 71. Kh2 {[%clk 0:00:11]}  Qg1# {[%clk 0:00:18]} 0-1


[Site "https://www.chess.com"]

[Event "Titled Tuesday Blitz February 14 Early 2023"]
[White "Livaic, Leon"]
[Black "Injac, Teodora"]
[WhiteFideId "14531534"]
[BlackFideId "932400"]
[WhiteElo "2579"]
[BlackElo "2391"]
[Result "1-0"]
[Round "02"]
[TimeControl "180+2"]
[Date "2023.02.15"]
[WhiteClock "0:00:13"]
[BlackClock "0:00:01"]

1. e4 {[%clk 0:03:00]}  c5 {[%clk 0:02:58]} 2. Nf3 {[%clk 0:03:00]}  d6 {[%clk 0:02:58]} 3. d4 {[%clk 0:03:00]}  cxd4 {[%clk 0:02:59]} 4. Qxd4 {[%clk 0:03:00]}  Nc6 {[%clk 0:02:58]} 5. Bb5 {[%clk 0:03:01]}  Bd7 {[%clk 0:02:58]} 6. Bxc6 {[%clk 0:03:02]}  Bxc6 {[%clk 0:02:58]} 7. Nc3 {[%clk 0:03:02]}  Nf6 {[%clk 0:02:58]} 8. Bg5 {[%clk 0:03:02]}  e6 {[%clk 0:02:58]} 9. O-O-O {[%clk 0:03:02]}  Be7 {[%clk 0:02:58]} 10. Rhe1 {[%clk 0:03:02]}  O-O {[%clk 0:02:55]} 11. e5 {[%clk 0:03:02]}  dxe5 {[%clk 0:02:48]} 12. Nxe5 {[%clk 0:03:03]}  Qc7 {[%clk 0:02:33]} 13. Qc4 {[%clk 0:03:00]}  h6 {[%clk 0:02:10]} 14. Bxf6 {[%clk 0:01:55]}  Bxf6 {[%clk 0:02:09]} 15. Nxc6 {[%clk 0:01:24]}  Rac8 {[%clk 0:01:21]} 16. Ne5 {[%clk 0:00:55]}  Qxc4 {[%clk 0:01:03]} 17. Nxc4 {[%clk 0:00:56]}  Rxc4 {[%clk 0:01:04]} 18. Ne4 {[%clk 0:00:57]}  Be5 {[%clk 0:00:35]} 19. g3 {[%clk 0:00:43]}  Rfc8 {[%clk 0:00:29]} 20. c3 {[%clk 0:00:43]}  Bb8 {[%clk 0:00:21]} 21. Rd7 {[%clk 0:00:36]}  b5 {[%clk 0:00:19]} 22. Rb7 {[%clk 0:00:16]}  b4 {[%clk 0:00:18]} 23. Nd2 {[%clk 0:00:16]}  R4c6 {[%clk 0:00:02]} 24. Rxb4 {[%clk 0:00:16]}  a5 {[%clk 0:00:02]} 25. Rb7 {[%clk 0:00:16]}  Bd6 {[%clk 0:00:02]} 26. Nb3 {[%clk 0:00:15]}  a4 {[%clk 0:00:02]} 27. Nd4 {[%clk 0:00:15]}  Rc4 {[%clk 0:00:02]} 28. Nb5 {[%clk 0:00:15]}  Bf8 {[%clk 0:00:02]} 29. a3 {[%clk 0:00:15]}  R4c5 {[%clk 0:00:02]} 30. Rd1 {[%clk 0:00:15]}  Rc4 {[%clk 0:00:01]} 31. Rdd7 {[%clk 0:00:14]}  R4c5 {[%clk 0:00:01]} 32. Nd6 {[%clk 0:00:13]}  Bxd6 {[%clk 0:00:01]} 33. Rxd6 {[%clk 0:00:14]}  Rf5 {[%clk 0:00:02]} 34. Rd2 {[%clk 0:00:12]}  g5 {[%clk 0:00:02]} 35. Rb4 {[%clk 0:00:13]}  h5 {[%clk 0:00:01]} 36. Rxa4 {[%clk 0:00:13]} 1-0


[Site "https://www.chess.com"]